[Event "*** Titled Tuesday Blitz"]
[Site "Chess.com"]
[Date "2020.10.20"]
[Round "10"]
[White "boasovietica"]
[Black "KarstenHansch"]
[Result "1-0"]
[WhiteElo "2405"]
[BlackElo "2489"]
[TimeControl "180+1"]
[EndTime "11:58:47 PDT"]
[Termination "boasovietica won by checkmate"]

1. e4 {[%clk 0:03:00.9]} 1... c6 {[%clk 0:02:59.8]} 2. d4 {[%clk 0:03:00.2]}
2... d5 {[%clk 0:02:54.6]} 3. exd5 {[%clk 0:03:01.1]} 3... cxd5 {[%clk
0:02:54.6]} 4. Bd3 {[%clk 0:03:01.6]} 4... Nc6 {[%clk 0:02:54.9]} 5. c3 {[%clk
0:03:01.8]} 5... Nf6 {[%clk 0:02:55.4]} 6. Ne2 {[%clk 0:03:01.6]} 6... Bg4
{[%clk 0:02:54.4]} 7. O-O {[%clk 0:03:02.1]} 7... e6 {[%clk 0:02:54.3]} 8. Qe1
{[%clk 0:03:00.6]} 8... Bd6 {[%clk 0:02:52.4]} 9. f3 {[%clk 0:02:59.8]} 9... Bh5
{[%clk 0:02:52.4]} 10. Qh4 {[%clk 0:03:00.4]} 10... O-O {[%clk 0:02:46]} 11.
Bxh7+ {[%clk 0:02:52.4]} 11... Kxh7 {[%clk 0:02:36.2]} 12. Bg5 {[%clk
0:02:52.1]} 12... Kg6 {[%clk 0:02:34.1]} 13. Bf4 {[%clk 0:01:31.7]} 13... Rh8
{[%clk 0:01:59.1]} 14. Qg3+ {[%clk 0:01:30.2]} 14... Kh7 {[%clk 0:01:55.2]} 15.
Bxd6 {[%clk 0:01:30.3]} 15... Bg6 {[%clk 0:01:55.2]} 16. Be5 {[%clk 0:01:23]}
16... Nxe5 {[%clk 0:01:52.2]} 17. Qxe5 {[%clk 0:01:20.5]} 17... Nd7 {[%clk
0:01:50.1]} 18. Qe3 {[%clk 0:01:17.4]} 18... Kg8 {[%clk 0:01:46.8]} 19. Nd2
{[%clk 0:01:13.4]} 19... Qh4 {[%clk 0:01:46.8]} 20. h3 {[%clk 0:01:11.4]} 20...
Bf5 {[%clk 0:01:45.7]} 21. f4 {[%clk 0:01:06.4]} 21... Nf6 {[%clk 0:01:44.6]}
22. Nf3 {[%clk 0:01:00.4]} 22... Qh6 {[%clk 0:01:44.1]} 23. Ng5 {[%clk
0:00:59.5]} 23... Ne4 {[%clk 0:01:41.3]} 24. Nxe4 {[%clk 0:00:57.8]} 24... Bxe4
{[%clk 0:01:41.6]} 25. Ng3 {[%clk 0:00:55.3]} 25... Bg6 {[%clk 0:01:24.2]} 26.
Rae1 {[%clk 0:00:51.3]} 26... Rc8 {[%clk 0:01:22.5]} 27. f5 {[%clk 0:00:49.1]}
27... exf5 {[%clk 0:01:18.8]} 28. Nxf5 {[%clk 0:00:46.6]} 28... Bxf5 {[%clk
0:01:18.9]} 29. Rxf5 {[%clk 0:00:45.6]} 29... Qd6 {[%clk 0:01:17.1]} 30. Qe7
{[%clk 0:00:36.3]} 30... Qg6 {[%clk 0:01:11.5]} 31. Rg5 {[%clk 0:00:27.3]} 31...
Qc2 {[%clk 0:01:03.9]} 32. Qf6 {[%clk 0:00:24.1]} 32... Rh7 {[%clk 0:01:02.7]}
33. Qe7 {[%clk 0:00:14.7]} 33... Rf8 {[%clk 0:00:59]} 34. Rxd5 {[%clk
0:00:13.2]} 34... g6 {[%clk 0:00:52.3]} 35. Rd8 {[%clk 0:00:12.1]} 35... Rxd8
{[%clk 0:00:52.3]} 36. Qxd8+ {[%clk 0:00:12.3]} 36... Kg7 {[%clk 0:00:52.8]} 37.
Qc7 {[%clk 0:00:11.6]} 37... Qxb2 {[%clk 0:00:51.3]} 38. Qe5+ {[%clk 0:00:12]}
38... Kg8 {[%clk 0:00:50.3]} 39. d5 {[%clk 0:00:12.5]} 39... f5 {[%clk
0:00:44.5]} 40. d6 {[%clk 0:00:12.3]} 40... Qb6+ {[%clk 0:00:42.1]} 41. Kh1
{[%clk 0:00:11.3]} 41... Rf7 {[%clk 0:00:42]} 42. d7 {[%clk 0:00:10.3]} 42...
Kh7 {[%clk 0:00:33.3]} 43. Qe8 {[%clk 0:00:09.5]} 43... Rxd7 {[%clk 0:00:16.7]}
44. Qxd7+ {[%clk 0:00:09.5]} 44... Kh6 {[%clk 0:00:17.3]} 45. Qd2+ {[%clk
0:00:09.1]} 45... Kg7 {[%clk 0:00:17]} 46. Qe3 {[%clk 0:00:09.3]} 46... Qb2
{[%clk 0:00:15.7]} 47. c4 {[%clk 0:00:08]} 47... Qxa2 {[%clk 0:00:14.8]} 48.
Qe7+ {[%clk 0:00:08.2]} 48... Kh6 {[%clk 0:00:14.2]} 49. Qh4+ {[%clk 0:00:08.1]}
49... Kg7 {[%clk 0:00:14.5]} 50. Re7+ {[%clk 0:00:08.5]} 50... Kf8 {[%clk
0:00:15.1]} 51. Qf6+ {[%clk 0:00:08.7]} 51... Kg8 {[%clk 0:00:15.8]} 52. Qg7#
{[%clk 0:00:09.6]} 1-0

[Event "*** Titled Tuesday Blitz"]
[Site "Chess.com"]
[Date "2020.10.20"]
[Round "10"]
[White "Matols"]
[Black "sbouchet"]
[Result "0-1"]
[WhiteElo "2256"]
[BlackElo "2402"]
[TimeControl "180+1"]
[EndTime "11:58:47 PDT"]
[Termination "sbouchet won on time"]

1. d4 {[%clk 0:03:00.9]} 1... Nf6 {[%clk 0:02:57.5]} 2. c4 {[%clk 0:03:00.5]}
2... g6 {[%clk 0:02:57.7]} 3. g3 {[%clk 0:02:59.9]} 3... Bg7 {[%clk 0:02:58]} 4.
Bg2 {[%clk 0:03:00.3]} 4... O-O {[%clk 0:02:58.6]} 5. Nc3 {[%clk 0:02:59.6]}
5... d6 {[%clk 0:02:59.1]} 6. Nf3 {[%clk 0:02:59.6]} 6... Nbd7 {[%clk
0:02:58.6]} 7. O-O {[%clk 0:02:59.3]} 7... c6 {[%clk 0:02:59.2]} 8. h3 {[%clk
0:02:57.1]} 8... e5 {[%clk 0:02:58.9]} 9. e4 {[%clk 0:02:56.9]} 9... Re8 {[%clk
0:02:56.3]} 10. Be3 {[%clk 0:02:54]} 10... exd4 {[%clk 0:02:51.8]} 11. Nxd4
{[%clk 0:02:53.6]} 11... a5 {[%clk 0:02:48.9]} 12. b3 {[%clk 0:02:50.3]} 12...
Nc5 {[%clk 0:02:47.9]} 13. Qc2 {[%clk 0:02:49.4]} 13... Qe7 {[%clk 0:02:46.9]}
14. Rfe1 {[%clk 0:02:26.7]} 14... Bd7 {[%clk 0:02:45.7]} 15. Rad1 {[%clk
0:02:20]} 15... Rad8 {[%clk 0:02:44.9]} 16. Bg5 {[%clk 0:02:14.7]} 16... h6
{[%clk 0:02:41.9]} 17. Be3 {[%clk 0:02:09.4]} 17... Bc8 {[%clk 0:02:41.3]} 18.
Kh2 {[%clk 0:02:05.6]} 18... Kh7 {[%clk 0:02:39.7]} 19. a3 {[%clk 0:02:03.8]}
19... Ne6 {[%clk 0:02:34.2]} 20. b4 {[%clk 0:01:59.6]} 20... axb4 {[%clk
0:02:32.2]} 21. axb4 {[%clk 0:01:59.2]} 21... Nxd4 {[%clk 0:02:32.5]} 22. Bxd4
{[%clk 0:01:58.3]} 22... Be6 {[%clk 0:02:32.9]} 23. c5 {[%clk 0:01:53.3]} 23...
dxc5 {[%clk 0:02:22.4]} 24. bxc5 {[%clk 0:01:46.5]} 24... Nd7 {[%clk 0:02:21.6]}
25. Bxg7 {[%clk 0:01:41.7]} 25... Kxg7 {[%clk 0:02:22.5]} 26. Na4 {[%clk
0:01:40.4]} 26... Kh7 {[%clk 0:02:12.2]} 27. Rb1 {[%clk 0:01:37.7]} 27... Ne5
{[%clk 0:02:09.6]} 28. Re3 {[%clk 0:01:19.8]} 28... Nc4 {[%clk 0:01:58.1]} 29.
Rc3 {[%clk 0:01:09.4]} 29... Rd2 {[%clk 0:01:36.6]} 30. Qc1 {[%clk 0:01:08.7]}
30... Rxf2 {[%clk 0:01:36.3]} 31. Rxc4 {[%clk 0:01:07.1]} 31... Bxc4 {[%clk
0:01:36.5]} 32. Qxc4 {[%clk 0:01:06.8]} 32... Qxe4 {[%clk 0:01:36.4]} 33. Qxe4
{[%clk 0:00:31.6]} 33... Rxe4 {[%clk 0:01:37.3]} 34. Nc3 {[%clk 0:00:29.3]}
34... Rc4 {[%clk 0:01:36.6]} 35. Nd1 {[%clk 0:00:23.9]} 35... Re2 {[%clk
0:01:08]} 36. Kg1 {[%clk 0:00:23.1]} 36... Rxc5 {[%clk 0:00:54.7]} 37. Bf1
{[%clk 0:00:19.9]} 37... Re7 {[%clk 0:00:52]} 38. Nf2 {[%clk 0:00:18.9]} 38...
b5 {[%clk 0:00:51]} 39. Nd3 {[%clk 0:00:17.9]} 39... Rc3 {[%clk 0:00:48.4]} 40.
Nf4 {[%clk 0:00:17.5]} 40... Rxg3+ {[%clk 0:00:43.2]} 41. Kf2 {[%clk 0:00:16.1]}
41... Rc3 {[%clk 0:00:43.8]} 42. h4 {[%clk 0:00:10.7]} 42... g5 {[%clk
0:00:39.9]} 43. hxg5 {[%clk 0:00:10.6]} 43... hxg5 {[%clk 0:00:40.8]} 44. Nh5
{[%clk 0:00:10]} 44... Kg6 {[%clk 0:00:37.3]} 45. Ng3 {[%clk 0:00:09.6]} 45...
f5 {[%clk 0:00:37.3]} 46. Rd1 {[%clk 0:00:07.6]} 46... Re6 {[%clk 0:00:34.4]}
47. Rd8 {[%clk 0:00:05.6]} 47... f4 {[%clk 0:00:32.1]} 48. Ne2 {[%clk
0:00:03.9]} 48... Rc2 {[%clk 0:00:28.6]} 49. Kf3 {[%clk 0:00:03.4]} 49... Re3+
{[%clk 0:00:27.9]} 50. Kf2 {[%clk 0:00:03.6]} 50... g4 {[%clk 0:00:25.4]} 51.
Rd6+ {[%clk 0:00:03.1]} 51... Kg5 {[%clk 0:00:24]} 52. Ke1 {[%clk 0:00:03.2]}
52... Rcxe2+ {[%clk 0:00:22.5]} 53. Bxe2 {[%clk 0:00:02.8]} 53... f3 {[%clk
0:00:23.2]} 0-1

[Event "*** Titled Tuesday Blitz"]
[Site "Chess.com"]
[Date "2020.10.20"]
[Round "10"]
[White "GlennTipton"]
[Black "Deepweb2020"]
[Result "1-0"]
[WhiteElo "2418"]
[BlackElo "2216"]
[TimeControl "180+1"]
[EndTime "11:58:49 PDT"]
[Termination "GlennTipton won on time"]

1. e4 {[%clk 0:02:59.7]} 1... e5 {[%clk 0:02:57.5]} 2. Nf3 {[%clk 0:02:35.7]}
2... Nc6 {[%clk 0:02:55.2]} 3. Bc4 {[%clk 0:02:36.2]} 3... Bc5 {[%clk
0:02:52.2]} 4. c3 {[%clk 0:02:36.3]} 4... Nf6 {[%clk 0:02:45.8]} 5. d3 {[%clk
0:02:36.8]} 5... d6 {[%clk 0:02:43.4]} 6. Bb3 {[%clk 0:02:37.2]} 6... a6 {[%clk
0:02:40.5]} 7. h3 {[%clk 0:02:37.7]} 7... Ba7 {[%clk 0:02:35.8]} 8. Nbd2 {[%clk
0:02:37.5]} 8... Ne7 {[%clk 0:02:34.5]} 9. Nf1 {[%clk 0:02:36.4]} 9... Ng6
{[%clk 0:02:33.1]} 10. N3h2 {[%clk 0:02:36.4]} 10... Be6 {[%clk 0:02:29.9]} 11.
Bc2 {[%clk 0:02:36]} 11... d5 {[%clk 0:02:25.4]} 12. Qf3 {[%clk 0:02:35.1]}
12... dxe4 {[%clk 0:02:23.9]} 13. dxe4 {[%clk 0:02:35]} 13... Qe7 {[%clk
0:02:22.6]} 14. Ng4 {[%clk 0:02:32.7]} 14... Nxg4 {[%clk 0:02:19.7]} 15. hxg4
{[%clk 0:02:33.6]} 15... O-O-O {[%clk 0:02:06.3]} 16. Ne3 {[%clk 0:02:33.4]}
16... Bxe3 {[%clk 0:02:00.7]} 17. Bxe3 {[%clk 0:02:33.3]} 17... Qd7 {[%clk
0:01:57.8]} 18. g5 {[%clk 0:02:21.6]} 18... Qb5 {[%clk 0:01:36.9]} 19. Bc1
{[%clk 0:02:15.7]} 19... Nf4 {[%clk 0:01:21.4]} 20. g3 {[%clk 0:02:13.5]} 20...
Nd3+ {[%clk 0:01:20.1]} 21. Bxd3 {[%clk 0:02:12.9]} 21... Rxd3 {[%clk
0:01:19.2]} 22. Qe2 {[%clk 0:02:12.6]} 22... Qd7 {[%clk 0:01:17.9]} 23. Be3
{[%clk 0:01:59.1]} 23... Bg4 {[%clk 0:01:15.2]} 24. f3 {[%clk 0:01:58.2]} 24...
Be6 {[%clk 0:01:12.4]} 25. O-O {[%clk 0:01:50.9]} 25... Rd8 {[%clk 0:01:07.2]}
26. Rfe1 {[%clk 0:01:44.5]} 26... f5 {[%clk 0:00:59.2]} 27. exf5 {[%clk
0:01:36.8]} 27... Bxf5 {[%clk 0:00:58.3]} 28. Bf2 {[%clk 0:01:14.4]} 28... e4
{[%clk 0:00:49.2]} 29. fxe4 {[%clk 0:01:08.8]} 29... Rd2 {[%clk 0:00:47.5]} 30.
Qe3 {[%clk 0:01:01.6]} 30... Be6 {[%clk 0:00:36.2]} 31. Re2 {[%clk 0:00:53.6]}
31... Rxe2 {[%clk 0:00:28.6]} 32. Qxe2 {[%clk 0:00:53.6]} 32... Qd2 {[%clk
0:00:26.4]} 33. Re1 {[%clk 0:00:45.7]} 33... Bxa2 {[%clk 0:00:21.9]} 34. Bd4
{[%clk 0:00:44]} 34... Qxe2 {[%clk 0:00:19.2]} 35. Rxe2 {[%clk 0:00:40.9]} 35...
g6 {[%clk 0:00:18.4]} 36. Rh2 {[%clk 0:00:38.5]} 36... Bg8 {[%clk 0:00:16.8]}
37. Rf2 {[%clk 0:00:37.4]} 37... Kd7 {[%clk 0:00:16.1]} 38. Rf6 {[%clk
0:00:36.8]} 38... b6 {[%clk 0:00:14.4]} 39. Kf2 {[%clk 0:00:35.8]} 39... Re8
{[%clk 0:00:13.4]} 40. Kf3 {[%clk 0:00:36]} 40... Ke7 {[%clk 0:00:09.7]} 41. Kf4
{[%clk 0:00:34.8]} 41... Rf8 {[%clk 0:00:09.1]} 42. Ke5 {[%clk 0:00:35.1]} 42...
Rd8 {[%clk 0:00:07.2]} 43. Rc6 {[%clk 0:00:31.4]} 43... Kd7 {[%clk 0:00:05.8]}
44. Rf6 {[%clk 0:00:31.4]} 44... Ke7 {[%clk 0:00:04.7]} 45. b4 {[%clk
0:00:30.8]} 45... Rd6 {[%clk 0:00:04.2]} 46. Kf4 {[%clk 0:00:29.6]} 46... Rxf6+
{[%clk 0:00:02.3]} 47. gxf6+ {[%clk 0:00:30]} 47... Kd7 {[%clk 0:00:01]} 48. Kg5
{[%clk 0:00:30.2]} 1-0

[Event "*** Titled Tuesday Blitz"]
[Site "Chess.com"]
[Date "2020.10.20"]
[Round "10"]
[White "Beca95"]
[Black "Sibelephant"]
[Result "0-1"]
[WhiteElo "2911"]
[BlackElo "3114"]
[TimeControl "180+1"]
[EndTime "11:58:50 PDT"]
[Termination "Sibelephant won by resignation"]

1. e4 {[%clk 0:03:00.9]} 1... e5 {[%clk 0:02:58.6]} 2. Nf3 {[%clk 0:02:59.5]}
2... Nc6 {[%clk 0:02:58.2]} 3. Bb5 {[%clk 0:02:56.7]} 3... a6 {[%clk 0:02:56.5]}
4. Ba4 {[%clk 0:02:56.3]} 4... d6 {[%clk 0:02:56.9]} 5. c3 {[%clk 0:02:54.1]}
5... Bd7 {[%clk 0:02:56.9]} 6. d4 {[%clk 0:02:52.3]} 6... g6 {[%clk 0:02:57.5]}
7. d5 {[%clk 0:02:52.1]} 7... Nce7 {[%clk 0:02:57.2]} 8. Bxd7+ {[%clk
0:02:51.8]} 8... Qxd7 {[%clk 0:02:57.5]} 9. c4 {[%clk 0:02:52.2]} 9... h6 {[%clk
0:02:55.2]} 10. Nc3 {[%clk 0:02:51.5]} 10... f5 {[%clk 0:02:54.7]} 11. O-O
{[%clk 0:02:37.7]} 11... Nf6 {[%clk 0:02:54.9]} 12. Nd2 {[%clk 0:02:34.4]} 12...
Bg7 {[%clk 0:02:52]} 13. b4 {[%clk 0:02:32.7]} 13... O-O {[%clk 0:02:40.7]} 14.
Rb1 {[%clk 0:02:31.8]} 14... b5 {[%clk 0:02:33.8]} 15. Qb3 {[%clk 0:02:09.7]}
15... Kh8 {[%clk 0:02:12]} 16. a4 {[%clk 0:02:08.3]} 16... fxe4 {[%clk
0:01:50.9]} 17. Ndxe4 {[%clk 0:01:41.3]} 17... Nxe4 {[%clk 0:01:47.2]} 18. Nxe4
{[%clk 0:01:40.5]} 18... bxc4 {[%clk 0:01:45.2]} 19. Qxc4 {[%clk 0:01:40.4]}
19... Qxa4 {[%clk 0:01:44.6]} 20. Qxc7 {[%clk 0:01:40.2]} 20... Nxd5 {[%clk
0:01:43.1]} 21. Qxd6 {[%clk 0:01:40.1]} 21... Rfd8 {[%clk 0:01:31.3]} 22. Qxg6
{[%clk 0:01:38.9]} 22... Qe8 {[%clk 0:01:01]} 23. Qg4 {[%clk 0:01:35.8]} 23...
Qd7 {[%clk 0:00:47.7]} 24. Qh4 {[%clk 0:01:35.5]} 24... Qe6 {[%clk 0:00:35.1]}
25. Be3 {[%clk 0:01:23.7]} 25... Rf8 {[%clk 0:00:15]} 26. Rbd1 {[%clk
0:00:56.8]} 26... Nxe3 {[%clk 0:00:13.4]} 27. fxe3 {[%clk 0:00:56.6]} 27... Qc4
{[%clk 0:00:14.1]} 28. Qg4 {[%clk 0:00:43.3]} 28... Qxb4 {[%clk 0:00:13.4]} 29.
h4 {[%clk 0:00:39.4]} 29... a5 {[%clk 0:00:11.1]} 30. Rxf8+ {[%clk 0:00:33.9]}
30... Rxf8 {[%clk 0:00:10.5]} 31. Rd7 {[%clk 0:00:32.6]} 31... Rg8 {[%clk
0:00:08.6]} 32. Kh2 {[%clk 0:00:30.8]} 32... a4 {[%clk 0:00:05.3]} 33. Qf5
{[%clk 0:00:20.9]} 33... a3 {[%clk 0:00:03.8]} 34. g3 {[%clk 0:00:19.4]} 34...
a2 {[%clk 0:00:02.5]} 35. Nf6 {[%clk 0:00:19.5]} 35... Qb2+ {[%clk 0:00:01.3]}
36. Kh3 {[%clk 0:00:18.9]} 36... Qb1 {[%clk 0:00:02.2]} 37. Qe6 {[%clk
0:00:17.2]} 37... Qh1+ {[%clk 0:00:02.4]} 38. Kg4 {[%clk 0:00:16.6]} 38... Bxf6+
{[%clk 0:00:03.3]} 39. Kh5 {[%clk 0:00:14.2]} 39... Qf3+ {[%clk 0:00:03.5]} 40.
g4 {[%clk 0:00:13.6]} 40... Qxg4+ {[%clk 0:00:03]} 41. Qxg4 {[%clk 0:00:13.9]}
41... Rxg4 {[%clk 0:00:03.9]} 42. Ra7 {[%clk 0:00:13.3]} 42... Rg2 {[%clk
0:00:04.2]} 43. Kxh6 {[%clk 0:00:12.8]} 43... Bg7+ {[%clk 0:00:04.6]} 44. Kh5
{[%clk 0:00:13.4]} 44... e4 {[%clk 0:00:04.3]} 45. Ra8+ {[%clk 0:00:13.7]} 45...
Bf8 {[%clk 0:00:04.5]} 46. Ra6 {[%clk 0:00:14.5]} 46... Re2 {[%clk 0:00:03.7]}
47. Ra7 {[%clk 0:00:14.2]} 47... Kg8 {[%clk 0:00:04.1]} 48. Kg4 {[%clk
0:00:13.9]} 48... Rg2+ {[%clk 0:00:04.3]} 49. Kf4 {[%clk 0:00:14.2]} 49... Bg7
{[%clk 0:00:04.1]} 50. Ra8+ {[%clk 0:00:14.4]} 50... Kh7 {[%clk 0:00:04.5]} 51.
Ra7 {[%clk 0:00:15.3]} 51... a1=Q {[%clk 0:00:04.6]} 0-1

[Event "*** Titled Tuesday Blitz"]
[Site "Chess.com"]
[Date "2020.10.20"]
[Round "10"]
[White "1stSecond"]
[Black "ViditYT"]
[Result "0-1"]
[WhiteElo "2770"]
[BlackElo "2921"]
[TimeControl "180+1"]
[EndTime "11:58:50 PDT"]
[Termination "ViditYT won by resignation"]

1. Nf3 {[%clk 0:03:00.9]} 1... d5 {[%clk 0:02:59.7]} 2. g3 {[%clk 0:03:01.5]}
2... c5 {[%clk 0:02:58.5]} 3. c4 {[%clk 0:03:00.8]} 3... d4 {[%clk 0:02:57.9]}
4. e3 {[%clk 0:02:59.8]} 4... Nc6 {[%clk 0:02:56.5]} 5. exd4 {[%clk 0:03:00.3]}
5... cxd4 {[%clk 0:02:57.4]} 6. Bg2 {[%clk 0:02:59.6]} 6... Nf6 {[%clk
0:02:56.3]} 7. d3 {[%clk 0:03:00.2]} 7... e6 {[%clk 0:02:48.3]} 8. a3 {[%clk
0:03:00.5]} 8... a5 {[%clk 0:02:47.9]} 9. Bg5 {[%clk 0:03:00.3]} 9... Be7 {[%clk
0:02:48.1]} 10. Bxf6 {[%clk 0:03:00.7]} 10... Bxf6 {[%clk 0:02:49]} 11. O-O
{[%clk 0:03:01.1]} 11... O-O {[%clk 0:02:48.7]} 12. Nbd2 {[%clk 0:03:01.8]}
12... Be7 {[%clk 0:02:45.2]} 13. Re1 {[%clk 0:02:59.4]} 13... f6 {[%clk
0:02:39.5]} 14. Rc1 {[%clk 0:02:55.1]} 14... e5 {[%clk 0:02:38]} 15. c5 {[%clk
0:02:55.1]} 15... Be6 {[%clk 0:02:37.9]} 16. Qa4 {[%clk 0:02:52.5]} 16... Kh8
{[%clk 0:02:27.3]} 17. Nc4 {[%clk 0:02:27.7]} 17... Qc7 {[%clk 0:02:14.8]} 18.
Qb5 {[%clk 0:01:51.8]} 18... Ra6 {[%clk 0:02:13.7]} 19. Nfd2 {[%clk 0:01:50]}
19... Rb8 {[%clk 0:01:52.2]} 20. Ne4 {[%clk 0:01:11.5]} 20... Na7 {[%clk
0:01:39.9]} 21. Qa4 {[%clk 0:01:11.2]} 21... Bd5 {[%clk 0:01:26.6]} 22. Ncd6
{[%clk 0:00:51.2]} 22... Qc6 {[%clk 0:01:12.8]} 23. Qd1 {[%clk 0:00:49.4]} 23...
a4 {[%clk 0:01:06.1]} 24. Qh5 {[%clk 0:00:43.1]} 24... g6 {[%clk 0:00:55.2]} 25.
Qh6 {[%clk 0:00:37]} 25... Bf8 {[%clk 0:00:42.3]} 26. Qh4 {[%clk 0:00:36.8]}
26... g5 {[%clk 0:00:27.7]} 27. Nxg5 {[%clk 0:00:18.9]} 27... fxg5 {[%clk
0:00:27.3]} 28. Qxg5 {[%clk 0:00:19.6]} 28... Bxd6 {[%clk 0:00:19.6]} 29. cxd6
{[%clk 0:00:07.9]} 29... Qxd6 {[%clk 0:00:20.5]} 30. Bxd5 {[%clk 0:00:06.1]}
30... Qxd5 {[%clk 0:00:20.6]} 31. Rxe5 {[%clk 0:00:05]} 31... Qf7 {[%clk
0:00:20.3]} 32. Re7 {[%clk 0:00:05]} 32... Qf6 {[%clk 0:00:19.9]} 33. Qc5 {[%clk
0:00:02.8]} 33... Rc6 {[%clk 0:00:17.2]} 34. Rxh7+ {[%clk 0:00:02.2]} 34... Kxh7
{[%clk 0:00:16.7]} 35. Qh5+ {[%clk 0:00:03.1]} 35... Kg7 {[%clk 0:00:15.5]} 36.
Re1 {[%clk 0:00:03.6]} 36... Rf8 {[%clk 0:00:12.3]} 37. Qg4+ {[%clk 0:00:03.9]}
37... Kh8 {[%clk 0:00:11.6]} 38. f4 {[%clk 0:00:03]} 38... Qg6 {[%clk
0:00:09.4]} 39. Qh4+ {[%clk 0:00:02.4]} 39... Qh7 {[%clk 0:00:08.6]} 40. Qg4
{[%clk 0:00:02.7]} 40... Rg6 {[%clk 0:00:07.9]} 41. Qf3 {[%clk 0:00:02.8]} 41...
Nc6 {[%clk 0:00:08.2]} 42. Re4 {[%clk 0:00:02.6]} 42... Ne7 {[%clk 0:00:08]} 43.
Qe2 {[%clk 0:00:02.5]} 43... Nf5 {[%clk 0:00:08.1]} 44. Re5 {[%clk 0:00:03]}
44... Nxg3 {[%clk 0:00:07.9]} 45. hxg3 {[%clk 0:00:03.3]} 45... Rxg3+ {[%clk
0:00:08.5]} 46. Kf2 {[%clk 0:00:02.9]} 46... Qh2+ {[%clk 0:00:08.5]} 47. Ke1
{[%clk 0:00:03.4]} 47... Qxe2+ {[%clk 0:00:08.9]} 48. Kxe2 {[%clk 0:00:03.7]}
48... Rxf4 {[%clk 0:00:07.8]} 0-1

[Event "*** Titled Tuesday Blitz"]
[Site "Chess.com"]
[Date "2020.10.20"]
[Round "10"]
[White "mr65"]
[Black "Fortitudine"]
[Result "1-0"]
[WhiteElo "2175"]
[BlackElo "2275"]
[TimeControl "180+1"]
[EndTime "11:58:54 PDT"]
[Termination "mr65 won on time"]

1. e4 {[%clk 0:03:00.9]} 1... c5 {[%clk 0:02:59.1]} 2. Nf3 {[%clk 0:03:00.2]}
2... d6 {[%clk 0:02:59.3]} 3. d4 {[%clk 0:03:00.3]} 3... cxd4 {[%clk 0:03:00.2]}
4. Nxd4 {[%clk 0:03:00.4]} 4... Nf6 {[%clk 0:03:00.7]} 5. Nc3 {[%clk 0:03:00]}
5... Nc6 {[%clk 0:03:01.3]} 6. Bg5 {[%clk 0:02:58.1]} 6... Bd7 {[%clk
0:03:01.6]} 7. Qd2 {[%clk 0:02:55.9]} 7... Rc8 {[%clk 0:03:01.1]} 8. O-O-O
{[%clk 0:02:52.5]} 8... Nxd4 {[%clk 0:03:01.1]} 9. Qxd4 {[%clk 0:02:51.1]} 9...
Qa5 {[%clk 0:03:00.3]} 10. f4 {[%clk 0:02:46.3]} 10... Rxc3 {[%clk 0:02:57.8]}
11. Qxc3 {[%clk 0:02:43.8]} 11... Qxc3 {[%clk 0:02:57.8]} 12. bxc3 {[%clk
0:02:42.7]} 12... Nxe4 {[%clk 0:02:58.4]} 13. Bh4 {[%clk 0:02:32.3]} 13... g6
{[%clk 0:02:54.9]} 14. Rd4 {[%clk 0:02:22.8]} 14... Bc6 {[%clk 0:02:47.9]} 15.
Bd3 {[%clk 0:02:16.5]} 15... Nxc3 {[%clk 0:02:34.5]} 16. Re1 {[%clk 0:02:09.6]}
16... Kd7 {[%clk 0:02:22.6]} 17. Kb2 {[%clk 0:01:51]} 17... Nd5 {[%clk
0:02:11.3]} 18. c3 {[%clk 0:01:44.6]} 18... e6 {[%clk 0:01:50.9]} 19. Bc4 {[%clk
0:01:38.9]} 19... Nb6 {[%clk 0:00:53.1]} 20. Bf6 {[%clk 0:01:32.4]} 20... Rg8
{[%clk 0:00:52.5]} 21. Bb3 {[%clk 0:01:29.5]} 21... Bxg2 {[%clk 0:00:47.6]} 22.
a4 {[%clk 0:01:20.9]} 22... Be7 {[%clk 0:00:29.9]} 23. Bxe7 {[%clk 0:01:15.9]}
23... Kxe7 {[%clk 0:00:30.8]} 24. a5 {[%clk 0:01:14.9]} 24... Nd7 {[%clk
0:00:26.2]} 25. Bd5 {[%clk 0:01:06.9]} 25... Bxd5 {[%clk 0:00:22.9]} 26. Rxd5
{[%clk 0:01:06.6]} 26... Nc5 {[%clk 0:00:16.6]} 27. Kc2 {[%clk 0:01:01.7]} 27...
h6 {[%clk 0:00:15.2]} 28. Rd4 {[%clk 0:00:55.7]} 28... Kd7 {[%clk 0:00:13.1]}
29. Red1 {[%clk 0:00:52.6]} 29... g5 {[%clk 0:00:10.5]} 30. Rxd6+ {[%clk
0:00:51]} 30... Kc7 {[%clk 0:00:10.9]} 31. f5 {[%clk 0:00:45.5]} 31... g4 {[%clk
0:00:08]} 32. fxe6 {[%clk 0:00:42.7]} 32... fxe6 {[%clk 0:00:08.9]} 33. R6d4
{[%clk 0:00:37.6]} 33... h5 {[%clk 0:00:08.8]} 34. Rf1 {[%clk 0:00:35.3]} 34...
Kc6 {[%clk 0:00:08.2]} 35. Re1 {[%clk 0:00:25.7]} 35... Rg6 {[%clk 0:00:07.4]}
36. Re5 {[%clk 0:00:24.5]} 36... h4 {[%clk 0:00:06.5]} 37. Rh5 {[%clk
0:00:20.1]} 37... g3 {[%clk 0:00:06.3]} 38. hxg3 {[%clk 0:00:19.7]} 38... hxg3
{[%clk 0:00:06.8]} 39. Rh1 {[%clk 0:00:19.4]} 39... g2 {[%clk 0:00:05.7]} 40.
Rg1 {[%clk 0:00:18.9]} 40... Rg3 {[%clk 0:00:04.9]} 41. Rd2 {[%clk 0:00:17.4]}
41... Ne4 {[%clk 0:00:03.1]} 42. Rdxg2 {[%clk 0:00:16.4]} 42... Rxc3+ {[%clk
0:00:03.6]} 43. Kb2 {[%clk 0:00:16.2]} 43... Rc5 {[%clk 0:00:03.9]} 44. Rc2
{[%clk 0:00:14.9]} 44... Rxc2+ {[%clk 0:00:03.9]} 45. Kxc2 {[%clk 0:00:14.2]}
45... Nc5 {[%clk 0:00:04.2]} 46. Kc3 {[%clk 0:00:13.1]} 46... b6 {[%clk
0:00:04.6]} 47. Kb4 {[%clk 0:00:05.4]} 47... bxa5+ {[%clk 0:00:02.6]} 48. Kxa5
{[%clk 0:00:04.5]} 1-0